[Event "World Junior U20 Girls 2018"]
[Site "Gebze"]
[Date "2018.09.12"]
[Round "8"]
[White "Lingur, Zalina"]
[Black "De Silva, Tenara"]
[Result "1-0"]
[ECO "B09"]
[WhiteElo "2061"]
[BlackElo "1764"]
[Annotator "NA"]
[PlyCount "77"]
[EventDate "2018.09.05"]
[EventType "swiss"]
[EventCountry "TUR"]
[SourceTitle "playchess.com"]
[Source "ChessBase"]
[SourceQuality "1"]
[TimeControl "40/5400+30:1800+30"]

1. e4 {[%emt 0:00:30]} d6 {[%emt 0:00:30]} 2. d4 {[%emt 0:00:00]} g6 {[%emt 0:00:30]} 3. Nc3 {[%emt 0:00:00]} Bg7 {[%emt 0:00:00]} 4. f4 {[%emt 0:00:30]} Nf6 {[%emt 0:00:00]} 5. Bd3 {[%emt 0:00:30]} O-O {[%emt 0:01:30]} 6. Nf3 {[%emt 0:00:30]} Nc6 {[%emt 0:00:30]} 7. e5 {[%emt 0:00:30]} dxe5 {[%emt 0:01:30]} 8. fxe5 {[%emt 0:01:30]} Nh5 {[%emt 0:01:30]} 9. Be2 {[%emt 0:05:30]} Bg4 {[%emt 0:03:30]} 10. Be3 {[%emt 0:03:30]} f6 {[%emt 0:05:30]} 11. exf6 {[%emt 0:06:30]} exf6 {[%emt 0:05:30]} 12. Qd2 {[%emt 0:05:30]} Qd7 {[%emt 1:15:30]} 13. Qd1 {[%emt 0:03:30]} Qd8 {[%emt 0:00:30]} 14. Qd2 {[%emt 0:00:30]} Qd7 {[%emt 0:00:00]} 15. O-O-O {[%emt 0:05:30]} f5 {[%emt 0:00:00]} 16. h3 {[%emt 0:04:30]} Bxf3 {[%emt 0:00:00]} 17. Bxf3 {[%emt 0:00:30]} Nf6 {[%emt 0:00:00]} 18. g4 {[%emt 0:12:30]} Rfe8 {[%emt 0:00:00]} 19. g5 {[%emt 0:05:30]} Ne4 {[%emt 0:00:00]} 20. Nxe4 {[%emt 0:00:00]} fxe4 {[%emt 0:00:00]} 21. Bg4 {[%emt 0:01:00]} Qd5 {[%emt 0:00:00]} 22. Kb1 {[%emt 0:01:30]} Bf8 {[%emt 0:00:00]} 23. c3 {[%emt 0:08:30]} b5 {[%emt 0:00:00]} 24. b3 {[%emt 0:03:30]} Ba3 {[%emt 0:00:00]} 25. h4 {[%emt 0:03:30]} Na5 {[%emt 0:00:00]} 26. h5 {[%emt 0:02:30]} Nxb3 {[%emt 0:00:00]} 27. axb3 {[%emt 0:00:30]} Qxb3+ {[%emt 0:00:00]} 28. Ka1 {[%emt 0:00:30]} b4 {[%emt 0:00:00]} 29. Qa2 {[%emt 0:02:30]} Qxa2+ {[%emt 0:00:00]} 30. Kxa2 {[%emt 0:00:00]} a5 {[%emt 0:00:00]} 31. hxg6 {[%emt 0:01:00]} hxg6 {[%emt 0:00:00]} 32. Rh6 {[%emt 0:00:30]} Ra6 {[%emt 0:00:00]} 33. Rdh1 {[%emt 0:00:30]} Kf7 {[%emt 0:00:00]} 34. Rh7+ {[%emt 0:00:30]} Kf8 {[%emt 0:00:00]} 35. Rh8+ {[%emt 0:00:30]} Ke7 {[%emt 0:00:00]} 36. R1h7+ {[%emt 0:00:30]} Kd8 {[%emt 0:00:00]} 37. Rd7+ {[%emt 0:00:30]} Kc8 {[%emt 0:00:00]} 38. Rxe8+ {[%emt 0:00:00]} Kb7 {[%emt 0:00:00]} 39. d5 {[%emt 0:00:00]} 1-0

[Event "World Junior U20 Girls 2018"]
[Site "Gebze"]
[Date "2018.09.12"]
[Round "8"]
[White "Auvray, Honorine"]
[Black "Kyrkjebo, Hanna B"]
[Result "1-0"]
[ECO "D02"]
[WhiteElo "2050"]
[BlackElo "1947"]
[Annotator "NA"]
[PlyCount "119"]
[EventDate "2018.09.05"]
[EventType "swiss"]
[EventCountry "TUR"]
[SourceTitle "playchess.com"]
[Source "ChessBase"]
[SourceQuality "1"]
[TimeControl "40/5400+30:1800+30"]

1. d4 {[%emt 0:00:30]} Nf6 {[%emt 0:00:30]} 2. Bf4 {[%emt 0:00:00]} e6 {[%emt 0:00:30]} 3. e3 {[%emt 0:00:00]} c5 {[%emt 0:00:00]} 4. c3 {[%emt 0:00:30]} Be7 {[%emt 0:00:00]} 5. Nd2 {[%emt 0:00:30]} b6 {[%emt 0:00:30]} 6. h3 {[%emt 0:00:30]} Bb7 {[%emt 0:00:30]} 7. Ngf3 {[%emt 0:00:30]} O-O {[%emt 0:00:30]} 8. Bd3 {[%emt 0:00:30]} d5 {[%emt 0:00:30]} 9. O-O {[%emt 0:02:30]} Nbd7 {[%emt 0:00:30]} 10. Ne5 {[%emt 0:07:30]} Ne4 {[%emt 0:05:30]} 11. f3 {[%emt 0:14:30]} Nxd2 {[%emt 0:06:30]} 12. Qxd2 {[%emt 0:00:30]} f6 {[%emt 0:01:30]} 13. Nxd7 {[%emt 0:01:30]} Qxd7 {[%emt 0:00:30]} 14. Rfe1 {[%emt 0:11:30]} f5 {[%emt 0:11:30]} 15. Rad1 {[%emt 0:04:30]} c4 {[%emt 0:06:30]} 16. Bc2 {[%emt 0:00:30]} Bd6 {[%emt 0:01:30]} 17. Bxd6 {[%emt 0:02:30]} Qxd6 {[%emt 0:00:00]} 18. e4 {[%emt 0:00:30]} fxe4 {[%emt 0:07:00]} 19. fxe4 {[%emt 0:00:30]} Rae8 {[%emt 0:06:30]} 20. Qe2 {[%emt 0:05:30]} Qd7 {[%emt 0:11:30]} 21. Qg4 {[%emt 0:01:30]} Rd8 {[%emt 0:10:30]} 22. exd5 {[%emt 0:03:30]} Bxd5 {[%emt 0:11:37]} 23. Re5 {[%emt 0:07:30]} Rf6 {[%emt 0:02:30]} 24. Rde1 {[%emt 0:02:30]} Qf7 {[%emt 0:03:02]} 25. b3 {[%emt 0:06:30]} b5 {[%emt 0:01:39]} 26. Qh4 {[%emt 0:07:18]} g6 {[%emt 0:02:08]} 27. Be4 {[%emt 0:02:15]} Rd7 {[%emt 0:03:18]} 28. Bxd5 {[%emt 0:03:25]} Rxd5 {[%emt 0:00:26]} 29. bxc4 {[%emt 0:01:39]} bxc4 {[%emt 0:00:15]} 30. Qe4 {[%emt 0:00:29]} Rd6 {[%emt 0:03:13]} 31. Rc5 {[%emt 0:01:24]} Rd8 {[%emt 0:03:08]} 32. Rxc4 {[%emt 0:01:23]} Rf8 {[%emt 0:00:41]} 33. Kh2 {[%emt 0:03:07]} Rf2 {[%emt 0:01:19]} 34. a4 {[%emt 0:02:37]} Re8 {[%emt 0:00:30]} 35. Rc6 {[%emt 0:01:41]} Rb8 {[%emt 0:00:35]} 36. Qe5 {[%emt 0:02:45]} Rf8 {[%emt 0:00:29]} 37. Qxe6 {[%emt 0:02:43]} Qxe6 {[%emt 0:00:26]} 38. Rcxe6 {[%emt 0:00:20]} Rc2 {[%emt 0:00:25]} 39. Rc6 {[%emt 0:01:10]} Rff2 {[%emt 0:00:30]} 40. Rg1 {[%emt 0:00:00]} Rfd2 {[%emt 0:00:00]} 41. Rc7 {[%emt 0:07:44]} a5 {[%emt 0:08:49]} 42. Kh1 {[%emt 0:04:57]} Rb2 {[%emt 0:03:30]} 43. Ra7 {[%emt 0:04:58]} Rdc2 {[%emt 0:02:05]} 44. d5 {[%emt 0:00:38]} Rb6 {[%emt 0:09:25]} 45. Rxa5 {[%emt 0:03:56]} Rxc3 {[%emt 0:01:00]} 46. Rd1 {[%emt 0:00:30]} Rd6 {[%emt 0:00:27]} 47. Kh2 {[%emt 0:04:29]} Ra3 {[%emt 0:02:19]} 48. Ra7 {[%emt 0:00:50]} Kf8 {[%emt 0:01:40]} 49. Rb1 {[%emt 0:01:03]} Re3 {[%emt 0:03:41]} 50. Rxh7 {[%emt 0:00:55]} Kg8 {[%emt 0:01:17]} 51. Rc7 {[%emt 0:01:30]} Re8 {[%emt 0:00:45]} 52. Rb5 {[%emt 0:00:30]} Red8 {[%emt 0:00:28]} 53. a5 {[%emt 0:01:13]} g5 {[%emt 0:01:35]} 54. Kg3 {[%emt 0:00:48]} R8d7 {[%emt 0:00:30]} 55. Rxd7 {[%emt 0:00:38]} Rxd7 {[%emt 0:00:02]} 56. a6 {[%emt 0:00:00]} Kf8 {[%emt 0:00:56]} 57. Rb8+ {[%emt 0:00:11]} Ke7 {[%emt 0:00:50]} 58. Rb7 {[%emt 0:00:05]} Kd6 {[%emt 0:00:19]} 59. Rxd7+ {[%emt 0:00:30]} Kxd7 {[%emt 0:00:00]} 60. a7 {[%emt 0:00:07]} 1-0

[Event "World Junior U20 Girls 2018"]
[Site "Gebze"]
[Date "2018.09.12"]
[Round "8"]
[White "Gomez Barrera, Javiera Belen"]
[Black "Georgescu, Lena"]
[Result "1-0"]
[ECO "B67"]
[WhiteElo "2035"]
[BlackElo "2195"]
[Annotator "NA"]
[PlyCount "73"]
[EventDate "2018.09.05"]
[EventType "swiss"]
[EventCountry "TUR"]
[SourceTitle "playchess.com"]
[Source "ChessBase"]
[SourceQuality "1"]
[TimeControl "40/5400+30:1800+30"]

1. e4 {[%emt 0:00:30]} c5 {[%emt 0:00:30]} 2. Nf3 {[%emt 0:00:30]} d6 {[%emt 0:00:30]} 3. d4 {[%emt 0:00:30]} cxd4 {[%emt 0:00:00]} 4. Nxd4 {[%emt 0:00:00]} Nf6 {[%emt 0:00:00]} 5. Nc3 {[%emt 0:00:00]} Nc6 {[%emt 0:00:00]} 6. Bg5 {[%emt 0:00:30]} e6 {[%emt 0:00:00]} 7. Qd2 {[%emt 0:00:30]} a6 {[%emt 0:00:00]} 8. O-O-O {[%emt 0:01:30]} Bd7 {[%emt 0:00:00]} 9. f4 {[%emt 0:01:30]} b5 {[%emt 0:00:00]} 10. Bxf6 {[%emt 0:00:30]} gxf6 {[%emt 0:00:00]} 11. Kb1 {[%emt 0:00:30]} Qb6 {[%emt 0:00:00]} 12. Nce2 {[%emt 0:01:30]} Na5 {[%emt 0:23:00]} 13. f5 {[%emt 0:04:30]} e5 {[%emt 0:06:30]} 14. Nb3 {[%emt 0:39:30]} Nc4 {[%emt 0:02:30]} 15. Qd3 {[%emt 0:02:30]} Ne3 {[%emt 0:09:30]} 16. Re1 {[%emt 0:02:30]} d5 {[%emt 0:18:30]} 17. Nc3 {[%emt 0:02:30]} d4 {[%emt 0:00:30]} 18. Nd5 {[%emt 0:10:30]} Nxd5 {[%emt 0:00:30]} 19. exd5 {[%emt 0:00:30]} Be7 {[%emt 0:10:30]} 20. g4 {[%emt 0:04:30]} O-O-O {[%emt 0:09:10]} 21. Nxd4 {[%emt 0:09:38]} h5 {[%emt 0:01:14]} 22. Bg2 {[%emt 0:09:24]} hxg4 {[%emt 0:01:13]} 23. Qc3+ {[%emt 0:03:13]} Qc7 {[%emt 0:04:38]} 24. Nc6 {[%emt 0:00:34]} Bxc6 {[%emt 0:02:12]} 25. dxc6 {[%emt 0:00:19]} Rd4 {[%emt 0:00:12]} 26. Qb3 {[%emt 0:04:15]} Bc5 {[%emt 0:01:10]} 27. Bd5 {[%emt 0:00:31]} Kb8 {[%emt 0:04:01]} 28. Be4 {[%emt 0:00:29]} Rh3 {[%emt 0:00:40]} 29. c3 {[%emt 0:00:27]} Rd2 {[%emt 0:03:18]} 30. Rd1 {[%emt 0:00:19]} Rd6 {[%emt 0:02:18]} 31. a4 {[%emt 0:00:37]} b4 {[%emt 0:00:39]} 32. Qc4 {[%emt 0:00:37]} Qa7 {[%emt 0:01:04]} 33. Rxd6 {[%emt 0:00:57]} Bxd6 {[%emt 0:00:30]} 34. cxb4 {[%emt 0:00:07]} Qd4 {[%emt 0:00:15]} 35. c7+ {[%emt 0:00:31]} Bxc7 {[%emt 0:00:17]} 36. Qc6 {[%emt 0:00:26]} Qxb4 {[%emt 0:01:53]} 37. Qa8# {[%emt 0:00:30]} 1-0

[Event "World Junior U20 Girls 2018"]
[Site "Gebze"]
[Date "2018.09.12"]
[Round "8"]
[White "Isha Sharma"]
[Black "Chitlange Sakshi"]
[Result "0-1"]
[ECO "B01"]
[WhiteElo "2012"]
[BlackElo "2279"]
[Annotator "NA"]
[PlyCount "112"]
[EventDate "2018.09.05"]
[EventType "swiss"]
[EventCountry "TUR"]
[SourceTitle "playchess.com"]
[Source "ChessBase"]
[SourceQuality "1"]
[TimeControl "40/5400+30:1800+30"]

1. e4 {[%emt 0:00:30]} d5 {[%emt 0:00:30]} 2. exd5 {[%emt 0:00:00]} Qxd5 {[%emt 0:00:00]} 3. d4 {[%emt 0:01:00]} Nf6 {[%emt 0:01:00]} 4. Nc3 {[%emt 0:00:00]} Qd6 {[%emt 0:00:30]} 5. Bc4 {[%emt 0:01:00]} c6 {[%emt 0:00:30]} 6. Nge2 {[%emt 0:03:30]} Bf5 {[%emt 0:03:30]} 7. Bf4 {[%emt 0:01:30]} Qb4 {[%emt 0:00:30]} 8. Bd3 {[%emt 0:06:30]} Bxd3 {[%emt 0:03:30]} 9. Qxd3 {[%emt 0:00:00]} e6 {[%emt 0:03:30]} 10. O-O {[%emt 0:01:00]} Nbd7 {[%emt 0:02:30]} 11. a3 {[%emt 0:01:30]} Qb6 {[%emt 0:01:30]} 12. b4 {[%emt 0:04:30]} Be7 {[%emt 0:01:30]} 13. b5 {[%emt 0:11:30]} O-O {[%emt 0:03:30]} 14. a4 {[%emt 0:04:30]} Nd5 {[%emt 0:12:30]} 15. Bg3 {[%emt 0:11:30]} Qa5 {[%emt 0:16:30]} 16. Rfb1 {[%emt 0:08:30]} Nxc3 {[%emt 0:00:30]} 17. Nxc3 {[%emt 0:00:30]} c5 {[%emt 0:02:30]} 18. dxc5 {[%emt 0:13:30]} Nxc5 {[%emt 0:02:30]} 19. Qe3 {[%emt 0:00:00]} Bf6 {[%emt 0:13:30]} 20. Be5 {[%emt 0:01:00]} Bxe5 {[%emt 0:01:30]} 21. Qxe5 {[%emt 0:00:00]} Nd7 {[%emt 0:01:30]} 22. Qd4 {[%emt 0:02:00]} Qc7 {[%emt 0:05:30]} 23. Ne4 {[%emt 0:03:30]} Rfd8 {[%emt 0:01:30]} 24. Rb3 {[%emt 0:03:30]} Ne5 {[%emt 0:02:37]} 25. Qb2 {[%emt 0:05:22]} Qd7 {[%emt 0:02:36]} 26. h3 {[%emt 0:07:11]} Nc4 {[%emt 0:04:11]} 27. Qc3 {[%emt 0:03:44]} Rac8 {[%emt 0:00:07]} 28. Qg3 {[%emt 0:00:00]} Qe7 {[%emt 0:03:14]} 29. Rf3 {[%emt 0:00:44]} f5 {[%emt 0:03:06]} 30. Nc3 {[%emt 0:01:18]} Qf6 {[%emt 0:00:20]} 31. Re1 {[%emt 0:00:09]} Nd2 {[%emt 0:00:48]} 32. Nd1 {[%emt 0:03:02]} Nxf3+ {[%emt 0:02:07]} 33. Qxf3 {[%emt 0:00:03]} Rxc2 {[%emt 0:01:09]} 34. Ne3 {[%emt 0:00:35]} Rc7 {[%emt 0:00:38]} 35. Qf4 {[%emt 0:00:23]} Qc3 {[%emt 0:01:09]} 36. Rb1 {[%emt 0:00:36]} Rcd7 {[%emt 0:00:48]} 37. Kh2 {[%emt 0:01:33]} Qc7 {[%emt 0:00:45]} 38. Qxc7 {[%emt 0:00:30]} Rxc7 {[%emt 0:00:30]} 39. b6 {[%emt 0:00:30]} axb6 {[%emt 0:00:30]} 40. Rxb6 {[%emt 0:00:00]} Kf7 {[%emt 0:00:00]} 41. a5 {[%emt 0:00:50]} f4 {[%emt 0:04:25]} 42. Ng4 {[%emt 0:01:30]} Rd5 {[%emt 0:00:00]} 43. Rb4 {[%emt 0:01:30]} e5 {[%emt 0:00:00]} 44. f3 {[%emt 0:00:30]} Rxa5 {[%emt 0:00:30]} 45. Rb6 {[%emt 0:01:30]} Ke7 {[%emt 0:03:30]} 46. Nf2 {[%emt 0:00:30]} Ra6 {[%emt 0:07:30]} 47. Rb5 {[%emt 0:00:30]} Re6 {[%emt 0:03:12]} 48. Nd3 {[%emt 0:00:30]} b6 {[%emt 0:01:16]} 49. Kg1 {[%emt 0:01:30]} Kf6 {[%emt 0:01:11]} 50. Kf1 {[%emt 0:00:30]} Ra7 {[%emt 0:01:14]} 51. Nf2 {[%emt 0:01:30]} Ra5 {[%emt 0:00:28]} 52. Ne4+ {[%emt 0:00:00]} Kf5 {[%emt 0:01:05]} 53. Rb3 {[%emt 0:00:00]} Rc6 {[%emt 0:00:00]} 54. Rb2 {[%emt 0:00:30]} Ra1+ {[%emt 0:00:42]} 55. Ke2 {[%emt 0:00:30]} Rg1 {[%emt 0:02:19]} 56. Kd3 {[%emt 0:00:30]} Rg6 {[%emt 0:00:23]} 0-1

[Event "World Junior U20 Girls 2018"]
[Site "Gebze"]
[Date "2018.09.12"]
[Round "8"]
[White "Kamalidenova, Meruert"]
[Black "Koljevic, Nikolina"]
[Result "1-0"]
[ECO "D34"]
[WhiteElo "2011"]
[BlackElo "1898"]
[Annotator "NA"]
[PlyCount "109"]
[EventDate "2018.09.05"]
[EventType "swiss"]
[EventCountry "TUR"]
[SourceTitle "playchess.com"]
[Source "ChessBase"]
[SourceQuality "1"]
[TimeControl "40/5400+30:1800+30"]

1. d4 {[%emt 0:00:30]} d5 {[%emt 0:00:30]} 2. Nf3 {[%emt 0:00:30]} e6 {[%emt 0:00:00]} 3. c4 {[%emt 0:00:00]} c5 {[%emt 0:00:00]} 4. cxd5 {[%emt 0:00:00]} exd5 {[%emt 0:00:00]} 5. g3 {[%emt 0:00:30]} Nf6 {[%emt 0:00:00]} 6. Bg2 {[%emt 0:00:30]} Be7 {[%emt 0:00:00]} 7. O-O {[%emt 0:00:30]} O-O {[%emt 0:00:00]} 8. Nc3 {[%emt 0:00:00]} Nc6 {[%emt 0:00:30]} 9. Bg5 {[%emt 0:01:00]} cxd4 {[%emt 0:00:00]} 10. Nxd4 {[%emt 0:01:30]} h6 {[%emt 0:00:00]} 11. Bf4 {[%emt 0:01:30]} Bg4 {[%emt 0:00:30]} 12. h3 {[%emt 0:03:30]} Be6 {[%emt 0:00:00]} 13. Qd2 {[%emt 0:02:30]} Bb4 {[%emt 0:06:00]} 14. a3 {[%emt 0:04:30]} Ba5 {[%emt 0:00:00]} 15. Rac1 {[%emt 0:03:30]} Rc8 {[%emt 0:02:00]} 16. Kh2 {[%emt 0:06:30]} Re8 {[%emt 0:02:30]} 17. b4 {[%emt 0:06:30]} Bb6 {[%emt 0:00:30]} 18. Nxc6 {[%emt 0:01:30]} bxc6 {[%emt 0:00:30]} 19. Be5 {[%emt 0:06:30]} Bf5 {[%emt 0:03:30]} 20. Bd4 {[%emt 0:04:30]} Ne4 {[%emt 0:04:30]} 21. Nxe4 {[%emt 0:02:30]} Bxe4 {[%emt 0:00:30]} 22. e3 {[%emt 0:01:30]} Bxg2 {[%emt 0:06:30]} 23. Kxg2 {[%emt 0:01:30]} Re4 {[%emt 0:00:30]} 24. Bc5 {[%emt 0:01:30]} h5 {[%emt 0:08:30]} 25. h4 {[%emt 0:07:30]} Qd7 {[%emt 0:01:30]} 26. Rfd1 {[%emt 0:01:30]} Rce8 {[%emt 0:11:30]} 27. Qe2 {[%emt 0:08:30]} g6 {[%emt 0:07:30]} 28. Bxb6 {[%emt 0:03:30]} axb6 {[%emt 0:00:30]} 29. Qa6 {[%emt 0:00:30]} Rb8 {[%emt 0:05:30]} 30. Rd2 {[%emt 0:02:30]} Re6 {[%emt 0:03:30]} 31. Qd3 {[%emt 0:03:30]} Rd8 {[%emt 0:03:30]} 32. Qd4 {[%emt 0:00:30]} Qc7 {[%emt 0:02:30]} 33. Rdc2 {[%emt 0:01:30]} Re4 {[%emt 0:06:30]} 34. Rxc6 {[%emt 0:08:25]} Qxc6 {[%emt 0:03:30]} 35. Rxc6 {[%emt 0:00:09]} Rxd4 {[%emt 0:00:00]} 36. exd4 {[%emt 0:00:30]} Ra8 {[%emt 0:00:00]} 37. Rd6 {[%emt 0:04:23]} Rxa3 {[%emt 0:00:30]} 38. Rxd5 {[%emt 0:00:10]} Rb3 {[%emt 0:00:30]} 39. Rb5 {[%emt 0:01:59]} Rd3 {[%emt 0:00:00]} 40. d5 {[%emt 0:00:00]} Kf8 {[%emt 0:00:00]} 41. Kf1 {[%emt 0:01:24]} Ke7 {[%emt 0:00:30]} 42. Ke2 {[%emt 0:03:30]} Rd4 {[%emt 0:00:30]} 43. Ke3 {[%emt 0:01:30]} Rd1 {[%emt 0:00:00]} 44. Ke4 {[%emt 0:00:30]} Re1+ {[%emt 0:00:00]} 45. Kd4 {[%emt 0:01:30]} Rd1+ {[%emt 0:00:30]} 46. Ke5 {[%emt 0:02:30]} Re1+ {[%emt 0:01:30]} 47. Kf4 {[%emt 0:01:30]} Rd1 {[%emt 0:00:30]} 48. f3 {[%emt 0:01:30]} f6 {[%emt 0:03:30]} 49. Rxb6 {[%emt 0:03:30]} Rxd5 {[%emt 0:00:30]} 50. b5 {[%emt 0:00:30]} Kf7 {[%emt 0:05:30]} 51. Rb8 {[%emt 0:02:30]} Re5 {[%emt 0:01:30]} 52. b6 {[%emt 0:03:30]} Kg7 {[%emt 0:01:30]} 53. g4 {[%emt 0:04:59]} hxg4 {[%emt 0:18:30]} 54. Rb7+ {[%emt 0:05:16]} Kg8 {[%emt 0:02:30]} 55. Rc7 {[%emt 0:01:21]} 1-0

[Event "World Junior U20 Girls 2018"]
[Site "Gebze"]
[Date "2018.09.12"]
[Round "8"]
[White "Nastase, Andreea-Cristina"]
[Black "Caxita, Esperanca"]
[Result "1/2-1/2"]
[ECO "D13"]
[WhiteElo "1983"]
[BlackElo "1803"]
[Annotator "NA"]
[PlyCount "159"]
[EventDate "2018.09.05"]
[EventType "swiss"]
[EventCountry "TUR"]
[SourceTitle "playchess.com"]
[Source "ChessBase"]
[SourceQuality "1"]
[TimeControl "40/5400+30:1800+30"]

1. d4 {[%emt 0:00:30]} d5 {[%emt 0:00:30]} 2. c4 {[%emt 0:00:30]} c6 {[%emt 0:00:30]} 3. Nf3 {[%emt 0:00:00]} Nf6 {[%emt 0:00:00]} 4. Nc3 {[%emt 0:00:00]} e6 {[%emt 0:00:00]} 5. cxd5 {[%emt 0:00:00]} cxd5 {[%emt 0:00:30]} 6. Bf4 {[%emt 0:00:00]} Nc6 {[%emt 0:01:30]} 7. e3 {[%emt 0:00:30]} a6 {[%emt 0:00:30]} 8. Bd3 {[%emt 0:00:00]} Be7 {[%emt 0:00:30]} 9. O-O {[%emt 0:00:00]} O-O {[%emt 0:01:30]} 10. h3 {[%emt 0:00:30]} h6 {[%emt 0:01:30]} 11. a3 {[%emt 0:01:30]} Bd6 {[%emt 0:01:30]} 12. Bxd6 {[%emt 0:00:30]} Qxd6 {[%emt 0:00:00]} 13. Na4 {[%emt 0:01:30]} Bd7 {[%emt 0:05:00]} 14. Nc5 {[%emt 0:02:30]} Rab8 {[%emt 0:03:30]} 15. b4 {[%emt 0:02:30]} a5 {[%emt 0:09:30]} 16. Nxd7 {[%emt 0:06:30]} Nxd7 {[%emt 0:01:30]} 17. bxa5 {[%emt 0:00:30]} Nxa5 {[%emt 0:00:30]} 18. a4 {[%emt 0:01:30]} Rfc8 {[%emt 0:01:30]} 19. Qe2 {[%emt 0:02:30]} Nb6 {[%emt 0:01:30]} 20. Rfb1 {[%emt 0:03:30]} Rc7 {[%emt 0:06:30]} 21. Rb5 {[%emt 0:02:30]} Nbc4 {[%emt 0:02:30]} 22. Nd2 {[%emt 0:06:30]} b6 {[%emt 0:03:30]} 23. Bxc4 {[%emt 0:05:30]} Nxc4 {[%emt 0:02:30]} 24. Nxc4 {[%emt 0:05:30]} Rxc4 {[%emt 0:00:30]} 25. Qb2 {[%emt 0:01:30]} Qc7 {[%emt 0:10:30]} 26. a5 {[%emt 0:07:30]} Ra8 {[%emt 0:02:30]} 27. Rxb6 {[%emt 0:03:30]} Rxa5 {[%emt 0:02:30]} 28. Rb8+ {[%emt 0:03:30]} Kh7 {[%emt 0:00:30]} 29. Rf1 {[%emt 0:00:30]} Ra7 {[%emt 0:00:30]} 30. Qb1+ {[%emt 0:00:30]} g6 {[%emt 0:02:30]} 31. h4 {[%emt 0:01:30]} Kg7 {[%emt 0:05:30]} 32. Qb5 {[%emt 0:02:30]} Qd7 {[%emt 0:06:30]} 33. Qb2 {[%emt 0:00:30]} Qc7 {[%emt 0:00:30]} 34. g3 {[%emt 0:01:30]} h5 {[%emt 0:01:30]} 35. Re8 {[%emt 0:03:30]} Qb7 {[%emt 0:05:30]} 36. Rb1 {[%emt 0:02:30]} Qxb2 {[%emt 0:01:30]} 37. Rxb2 {[%emt 0:00:30]} Kf6 {[%emt 0:01:30]} 38. Kg2 {[%emt 0:00:00]} Rac7 {[%emt 0:00:43]} 39. Kf3 {[%emt 0:01:00]} Kf5 {[%emt 0:03:21]} 40. Ra8 {[%emt 0:00:00]} Kf6 {[%emt 0:00:00]} 41. Ra5 {[%emt 0:02:00]} Rd7 {[%emt 0:07:56]} 42. Ke2 {[%emt 0:02:30]} Rdc7 {[%emt 0:00:30]} 43. Kd3 {[%emt 0:01:30]} Ke7 {[%emt 0:01:30]} 44. Rab5 {[%emt 0:01:30]} Rc3+ {[%emt 0:01:30]} 45. Kd2 {[%emt 0:00:00]} R3c4 {[%emt 0:00:30]} 46. Rb7 {[%emt 0:00:00]} Kd6 {[%emt 0:04:30]} 47. f3 {[%emt 0:05:30]} Ra4 {[%emt 0:03:30]} 48. Rxc7 {[%emt 0:02:30]} Kxc7 {[%emt 0:00:30]} 49. Ke2 {[%emt 0:00:30]} Ra7 {[%emt 0:03:30]} 50. g4 {[%emt 0:00:30]} f6 {[%emt 0:06:30]} 51. gxh5 {[%emt 0:00:30]} gxh5 {[%emt 0:00:00]} 52. Kf2 {[%emt 0:00:30]} e5 {[%emt 0:01:00]} 53. Rb5 {[%emt 0:03:30]} Kc6 {[%emt 0:00:30]} 54. Rb8 {[%emt 0:00:00]} Ra2+ {[%emt 0:02:52]} 55. Kg3 {[%emt 0:00:00]} Ra3 {[%emt 0:00:08]} 56. Rf8 {[%emt 0:00:30]} exd4 {[%emt 0:04:02]} 57. exd4 {[%emt 0:00:30]} Rd3 {[%emt 0:00:47]} 58. Rxf6+ {[%emt 0:00:30]} Kd7 {[%emt 0:00:07]} 59. Rf5 {[%emt 0:01:30]} Rxd4 {[%emt 0:00:07]} 60. Rxh5 {[%emt 0:00:00]} Rd1 {[%emt 0:00:42]} 61. Kf2 {[%emt 0:02:00]} Ke6 {[%emt 0:00:55]} 62. Rh8 {[%emt 0:02:30]} d4 {[%emt 0:01:38]} 63. Ke2 {[%emt 0:00:30]} Rh1 {[%emt 0:00:32]} 64. h5 {[%emt 0:03:30]} Rh3 {[%emt 0:01:12]} 65. h6 {[%emt 0:00:30]} Kf7 {[%emt 0:01:31]} 66. Rd8 {[%emt 0:00:30]} Rxh6 {[%emt 0:00:54]} 67. Rxd4 {[%emt 0:00:30]} Kf6 {[%emt 0:03:52]} 68. Rd5 {[%emt 0:00:00]} Rg6 {[%emt 0:01:00]} 69. Ke3 {[%emt 0:01:00]} Ke6 {[%emt 0:01:51]} 70. Ra5 {[%emt 0:00:00]} Rg8 {[%emt 0:00:31]} 71. Ke4 {[%emt 0:00:00]} Kf6 {[%emt 0:00:25]} 72. Kf4 {[%emt 0:01:30]} Rc8 {[%emt 0:01:03]} 73. Ra6+ {[%emt 0:00:30]} Kf7 {[%emt 0:00:00]} 74. Kf5 {[%emt 0:00:30]} Rc5+ {[%emt 0:00:00]} 75. Kg4 {[%emt 0:00:00]} Rc1 {[%emt 0:00:38]} 76. f4 {[%emt 0:00:00]} Rc5 {[%emt 0:00:22]} 77. Ra4 {[%emt 0:02:30]} Kf6 {[%emt 0:00:43]} 78. f5 {[%emt 0:00:30]} Rc6 {[%emt 0:00:21]} 79. Kf4 {[%emt 0:01:30]} Rb6 {[%emt 0:00:10]} 80. Ke4 {[%emt 0:00:30]} 1/2-1/2